[Event "Early-Titled-Tuesday-Blitz-March-19-2024"]
[Site "Chess.com"]
[Date "2024.03.19"]
[Round "5"]
[White "Pikku_Myy73"]
[Black "ajeale2"]
[Result "0-1"]
[WhiteElo "2267"]
[BlackElo "2459"]
[TimeControl "180+1"]
[EndTime "8:56:51 PDT"]
[Termination "ajeale2 won by resignation"]

1. d4 {[%clk 0:03:00.9]} 1... d5 {[%clk 0:02:56.2]} 2. c4 {[%clk 0:03:00.9]}
2... dxc4 {[%clk 0:02:57.1]} 3. e4 {[%clk 0:03:00.8]} 3... e5 {[%clk 0:02:57]}
4. Nf3 {[%clk 0:03:01.1]} 4... exd4 {[%clk 0:02:55.4]} 5. Bxc4 {[%clk
0:03:01.1]} 5... Nc6 {[%clk 0:02:55.9]} 6. O-O {[%clk 0:02:56.8]} 6... Be6
{[%clk 0:02:55.4]} 7. Bb5 {[%clk 0:02:55.6]} 7... Bc5 {[%clk 0:02:54.6]} 8. b4
{[%clk 0:02:54.6]} 8... Bb6 {[%clk 0:02:54.5]} 9. a4 {[%clk 0:02:53.9]} 9... a6
{[%clk 0:02:53.1]} 10. Bxc6+ {[%clk 0:02:53.8]} 10... bxc6 {[%clk 0:02:53.7]}
11. a5 {[%clk 0:02:53.7]} 11... Ba7 {[%clk 0:02:53.9]} 12. Bb2 {[%clk
0:02:51.4]} 12... Bg4 {[%clk 0:02:25.7]} 13. Qc1 {[%clk 0:02:38.7]} 13... Bxf3
{[%clk 0:02:03.7]} 14. Qxc6+ {[%clk 0:02:37.8]} 14... Kf8 {[%clk 0:02:04.3]} 15.
gxf3 {[%clk 0:02:36.6]} 15... Ne7 {[%clk 0:01:41.4]} 16. Qc4 {[%clk 0:02:22.3]}
16... Ng6 {[%clk 0:01:37.3]} 17. Qd5 {[%clk 0:01:45.1]} 17... Qxd5 {[%clk
0:01:14.4]} 18. exd5 {[%clk 0:01:46]} 18... Nf4 {[%clk 0:01:13.9]} 19. Rd1
{[%clk 0:01:34.2]} 19... Rd8 {[%clk 0:01:07.8]} 20. Nd2 {[%clk 0:01:29.2]} 20...
Rxd5 {[%clk 0:00:56]} 21. Nb3 {[%clk 0:01:26.8]} 21... h5 {[%clk 0:00:40.1]} 22.
Kf1 {[%clk 0:01:26.6]} 22... Rh6 {[%clk 0:00:27.5]} 23. Rac1 {[%clk 0:00:58.8]}
23... c6 {[%clk 0:00:15.5]} 24. Rd2 {[%clk 0:00:44.7]} 24... Rg6 {[%clk
0:00:13.2]} 25. Bxd4 {[%clk 0:00:34.9]} 25... Rdg5 {[%clk 0:00:10.8]} 26. Bc5+
{[%clk 0:00:19.6]} 26... Bxc5 {[%clk 0:00:10.6]} 27. Rd8+ {[%clk 0:00:19.6]}
27... Ke7 {[%clk 0:00:11.2]} 28. Ke1 {[%clk 0:00:19.2]} 28... Rg1+ {[%clk
0:00:07.7]} 29. Kd2 {[%clk 0:00:19.5]} 29... Bxb4+ {[%clk 0:00:08.3]} 30. Kc2
{[%clk 0:00:19]} 30... Rxc1+ {[%clk 0:00:08.1]} 0-1

[Event "Early-Titled-Tuesday-Blitz-March-19-2024"]
[Site "Chess.com"]
[Date "2024.03.19"]
[Round "5"]
[White "Hikaru"]
[Black "ViIIagra"]
[Result "1-0"]
[WhiteElo "3283"]
[BlackElo "2921"]
[TimeControl "180+1"]
[EndTime "8:56:53 PDT"]
[Termination "Hikaru won by resignation"]

1. Nf3 {[%clk 0:03:00.9]} 1... d6 {[%clk 0:02:56.5]} 2. d4 {[%clk 0:02:58.9]}
2... Nf6 {[%clk 0:02:56.2]} 3. Nc3 {[%clk 0:02:51.7]} 3... Nbd7 {[%clk
0:02:34.3]} 4. e4 {[%clk 0:02:51.2]} 4... e5 {[%clk 0:02:34.6]} 5. Bc4 {[%clk
0:02:51.1]} 5... Be7 {[%clk 0:02:31.7]} 6. O-O {[%clk 0:02:50.7]} 6... O-O
{[%clk 0:02:31.9]} 7. Qe2 {[%clk 0:02:43]} 7... c6 {[%clk 0:02:25.2]} 8. a4
{[%clk 0:02:42.9]} 8... h6 {[%clk 0:02:24.2]} 9. a5 {[%clk 0:02:37.9]} 9... Re8
{[%clk 0:02:21.7]} 10. d5 {[%clk 0:02:34]} 10... cxd5 {[%clk 0:02:15.3]} 11.
Bxd5 {[%clk 0:02:15.8]} 11... Nc5 {[%clk 0:01:21.5]} 12. b4 {[%clk 0:02:10]}
12... Ne6 {[%clk 0:01:16]} 13. Rd1 {[%clk 0:02:01.9]} 13... Qc7 {[%clk
0:00:41.4]} 14. Nb5 {[%clk 0:01:49.9]} 14... Qb8 {[%clk 0:00:40]} 15. c4 {[%clk
0:01:50.2]} 15... Nxd5 {[%clk 0:00:35.3]} 16. exd5 {[%clk 0:01:35.2]} 16... Nc7
{[%clk 0:00:29.2]} 17. Nc3 {[%clk 0:01:23.2]} 17... Bf5 {[%clk 0:00:24.9]} 18.
Ba3 {[%clk 0:01:11.5]} 18... Bf8 {[%clk 0:00:25]} 19. c5 {[%clk 0:01:11.3]}
19... Na6 {[%clk 0:00:25]} 20. c6 {[%clk 0:01:10.6]} 20... Nc7 {[%clk
0:00:16.5]} 21. b5 {[%clk 0:01:10]} 21... Bg4 {[%clk 0:00:16]} 22. h3 {[%clk
0:01:08.5]} 22... Bxf3 {[%clk 0:00:16.1]} 23. Qxf3 {[%clk 0:01:09.4]} 23... bxc6
{[%clk 0:00:15.7]} 24. bxc6 {[%clk 0:01:06.5]} 24... Qb3 {[%clk 0:00:13.2]} 25.
Rdb1 {[%clk 0:01:06.3]} 25... Qc4 {[%clk 0:00:12.3]} 26. Rb4 {[%clk 0:01:02.9]}
26... Qa6 {[%clk 0:00:12.5]} 27. Rb7 {[%clk 0:01:02.9]} 27... Rac8 {[%clk
0:00:12.5]} 28. Bb4 {[%clk 0:00:53.5]} 28... Qc4 {[%clk 0:00:11]} 29. Ra4 {[%clk
0:00:48.3]} 29... e4 {[%clk 0:00:11.3]} 30. Qf4 {[%clk 0:00:45.6]} 30... Qd3
{[%clk 0:00:11.5]} 31. Qe3 {[%clk 0:00:43.6]} 31... Qc2 {[%clk 0:00:08.3]} 32.
Ra2 {[%clk 0:00:41.9]} 32... Qd3 {[%clk 0:00:08.9]} 33. Qxd3 {[%clk 0:00:40.5]}
33... exd3 {[%clk 0:00:09.8]} 34. Rd2 {[%clk 0:00:40.7]} 34... a6 {[%clk
0:00:03.9]} 35. Rxd3 {[%clk 0:00:40.2]} 1-0

[Event "Early-Titled-Tuesday-Blitz-March-19-2024"]
[Site "Chess.com"]
[Date "2024.03.19"]
[Round "5"]
[White "MarcoRiehle"]
[Black "ArmanGhevondyanchess"]
[Result "0-1"]
[WhiteElo "2800"]
[BlackElo "2608"]
[TimeControl "180+1"]
[EndTime "8:56:57 PDT"]
[Termination "ArmanGhevondyanchess won by checkmate"]

1. e4 {[%clk 0:03:00.9]} 1... c5 {[%clk 0:02:02.3]} 2. a3 {[%clk 0:03:00.2]}
2... d5 {[%clk 0:01:57.4]} 3. exd5 {[%clk 0:02:59.8]} 3... Qxd5 {[%clk
0:01:58.3]} 4. Nc3 {[%clk 0:02:59.5]} 4... Qd8 {[%clk 0:01:57.8]} 5. Nf3 {[%clk
0:02:59.4]} 5... Nc6 {[%clk 0:01:56.4]} 6. Bb5 {[%clk 0:02:58.7]} 6... Bd7
{[%clk 0:01:56.3]} 7. O-O {[%clk 0:02:58]} 7... Nf6 {[%clk 0:01:56.3]} 8. Re1
{[%clk 0:02:57.6]} 8... e6 {[%clk 0:01:56.9]} 9. d3 {[%clk 0:02:57.7]} 9... Be7
{[%clk 0:01:57.4]} 10. Bg5 {[%clk 0:02:57.1]} 10... O-O {[%clk 0:01:57]} 11. h3
{[%clk 0:02:53.6]} 11... a6 {[%clk 0:01:57.2]} 12. Ba4 {[%clk 0:02:52.8]} 12...
Nd4 {[%clk 0:01:53.2]} 13. Bxd7 {[%clk 0:02:50.1]} 13... Qxd7 {[%clk 0:01:54.1]}
14. Nxd4 {[%clk 0:02:48.1]} 14... cxd4 {[%clk 0:01:54.5]} 15. Bxf6 {[%clk
0:02:48.3]} 15... Bxf6 {[%clk 0:01:55.1]} 16. Ne4 {[%clk 0:02:48.3]} 16... Be7
{[%clk 0:01:55.6]} 17. c4 {[%clk 0:02:35.2]} 17... dxc3 {[%clk 0:01:55.5]} 18.
bxc3 {[%clk 0:02:35.6]} 18... Rac8 {[%clk 0:01:55.3]} 19. c4 {[%clk 0:02:33.2]}
19... b5 {[%clk 0:01:54.6]} 20. Qb3 {[%clk 0:02:24.7]} 20... Rfd8 {[%clk
0:01:54]} 21. Rad1 {[%clk 0:02:22.2]} 21... bxc4 {[%clk 0:01:47.2]} 22. dxc4
{[%clk 0:02:21.8]} 22... Qc6 {[%clk 0:01:47.8]} 23. Rxd8+ {[%clk 0:02:19.5]}
23... Rxd8 {[%clk 0:01:48.7]} 24. Ng3 {[%clk 0:02:11.2]} 24... Rc8 {[%clk
0:01:45.6]} 25. Rc1 {[%clk 0:02:09.5]} 25... Bc5 {[%clk 0:01:43.7]} 26. a4
{[%clk 0:02:00.9]} 26... h6 {[%clk 0:01:43.6]} 27. Rd1 {[%clk 0:01:47.7]} 27...
Be7 {[%clk 0:01:40.5]} 28. Rc1 {[%clk 0:01:44.3]} 28... Bg5 {[%clk 0:01:37.8]}
29. Rc2 {[%clk 0:01:42.2]} 29... Bf4 {[%clk 0:01:37]} 30. Kh2 {[%clk 0:01:37]}
30... Bxg3+ {[%clk 0:01:35.1]} 31. fxg3 {[%clk 0:01:35.8]} 31... Qc5 {[%clk
0:01:34.4]} 32. Qb7 {[%clk 0:01:32.7]} 32... a5 {[%clk 0:01:30.7]} 33. Qb5
{[%clk 0:01:29.5]} 33... g6 {[%clk 0:01:24.8]} 34. Rd2 {[%clk 0:01:27.1]} 34...
Kg7 {[%clk 0:01:15]} 35. Rd7 {[%clk 0:01:25.5]} 35... Qxc4 {[%clk 0:01:05]} 36.
Qxa5 {[%clk 0:01:25.1]} 36... Qf1 {[%clk 0:01:01.6]} 37. Qe5+ {[%clk 0:01:20.6]}
37... Qf6 {[%clk 0:00:53]} 38. Qe3 {[%clk 0:01:08.5]} 38... Rc2 {[%clk
0:00:45.3]} 39. a5 {[%clk 0:00:57.8]} 39... Ra2 {[%clk 0:00:45.4]} 40. Ra7
{[%clk 0:00:56.8]} 40... Qf1 {[%clk 0:00:44.2]} 41. Qe5+ {[%clk 0:00:48.5]}
41... Kh7 {[%clk 0:00:42.5]} 42. Qe4 {[%clk 0:00:44.6]} 42... Ra1 {[%clk
0:00:41.7]} 43. g4 {[%clk 0:00:45.2]} 43... Qg1+ {[%clk 0:00:41.7]} 44. Kg3
{[%clk 0:00:45.3]} 44... Ra3+ {[%clk 0:00:39.4]} 45. Kf4 {[%clk 0:00:45.6]}
45... Qxa7 {[%clk 0:00:35.5]} 46. Ke5 {[%clk 0:00:40.6]} 46... Qe7 {[%clk
0:00:29.9]} 47. h4 {[%clk 0:00:37.1]} 47... f6+ {[%clk 0:00:28.2]} 48. Kf4
{[%clk 0:00:36.6]} 48... e5+ {[%clk 0:00:27.4]} 49. Qxe5 {[%clk 0:00:35.7]}
49... Qxe5# {[%clk 0:00:28.3]} 0-1

[Event "Early-Titled-Tuesday-Blitz-March-19-2024"]
[Site "Chess.com"]
[Date "2024.03.19"]
[Round "5"]
[White "Antipov_Mikhail_Al"]
[Black "MatyChess1"]
[Result "1-0"]
[WhiteElo "2912"]
[BlackElo "2656"]
[TimeControl "180+1"]
[EndTime "8:56:57 PDT"]
[Termination "Antipov_Mikhail_Al won by resignation"]

1. e4 {[%clk 0:03:00.9]} 1... c6 {[%clk 0:03:00.1]} 2. d4 {[%clk 0:03:00.8]}
2... d5 {[%clk 0:03:01]} 3. exd5 {[%clk 0:03:01.7]} 3... cxd5 {[%clk 0:03:01.4]}
4. Bd3 {[%clk 0:03:02.4]} 4... Nc6 {[%clk 0:02:59.1]} 5. c3 {[%clk 0:03:02.8]}
5... Qc7 {[%clk 0:02:57.9]} 6. h3 {[%clk 0:03:02.7]} 6... Nf6 {[%clk 0:02:56.9]}
7. Nf3 {[%clk 0:03:02.9]} 7... g6 {[%clk 0:02:56.7]} 8. O-O {[%clk 0:03:03.4]}
8... Bf5 {[%clk 0:02:57]} 9. Be2 {[%clk 0:03:03.9]} 9... Bg7 {[%clk 0:02:53.6]}
10. Re1 {[%clk 0:03:04.2]} 10... O-O {[%clk 0:02:54.1]} 11. Be3 {[%clk 0:03:05]}
11... Rfe8 {[%clk 0:02:45]} 12. Nbd2 {[%clk 0:03:05.2]} 12... Rad8 {[%clk
0:02:44.6]} 13. Rc1 {[%clk 0:03:04.9]} 13... Ne4 {[%clk 0:02:43.5]} 14. b4
{[%clk 0:03:00]} 14... Qb8 {[%clk 0:02:40.2]} 15. Bf1 {[%clk 0:02:43.9]} 15...
e5 {[%clk 0:02:15.5]} 16. Bb5 {[%clk 0:02:31.5]} 16... Nxd2 {[%clk 0:02:10.2]}
17. Qxd2 {[%clk 0:02:30.8]} 17... e4 {[%clk 0:02:10.4]} 18. Nh2 {[%clk
0:02:22.2]} 18... h5 {[%clk 0:02:05.4]} 19. Nf1 {[%clk 0:02:09.8]} 19... Bd7
{[%clk 0:01:56.2]} 20. Bf4 {[%clk 0:02:05.1]} 20... Qc8 {[%clk 0:01:56]} 21. Ne3
{[%clk 0:02:05.6]} 21... Be6 {[%clk 0:01:41.2]} 22. Bf1 {[%clk 0:01:55.4]} 22...
Qd7 {[%clk 0:01:28.3]} 23. Red1 {[%clk 0:01:52.5]} 23... Kh7 {[%clk 0:01:21.2]}
24. b5 {[%clk 0:01:34.5]} 24... Ne7 {[%clk 0:00:28.6]} 25. a4 {[%clk 0:01:24]}
25... Rc8 {[%clk 0:00:25.9]} 26. c4 {[%clk 0:01:05.4]} 26... dxc4 {[%clk
0:00:26.3]} 27. d5 {[%clk 0:01:05.7]} 27... c3 {[%clk 0:00:26.9]} 28. Qa2 {[%clk
0:01:02.3]} 28... Bf5 {[%clk 0:00:06.8]} 29. Be2 {[%clk 0:00:50.9]} 29... Ng8
{[%clk 0:00:06.1]} 30. g4 {[%clk 0:00:49.3]} 30... hxg4 {[%clk 0:00:07]} 31.
hxg4 {[%clk 0:00:50.1]} 31... Nf6 {[%clk 0:00:04.1]} 32. gxf5 {[%clk 0:00:50.1]}
32... gxf5 {[%clk 0:00:05]} 33. Kg2 {[%clk 0:00:50.2]} 33... Rg8 {[%clk
0:00:05.5]} 34. Rh1+ {[%clk 0:00:49.4]} 34... Bh6+ {[%clk 0:00:06.2]} 35. Kf1
{[%clk 0:00:50]} 35... Rg6 {[%clk 0:00:07]} 36. d6 {[%clk 0:00:47]} 36... Rcg8
{[%clk 0:00:07.2]} 37. Rxc3 {[%clk 0:00:37.7]} 37... R8g7 {[%clk 0:00:07.1]} 38.
Rc7 {[%clk 0:00:36.9]} 38... Qe8 {[%clk 0:00:04.8]} 39. Nxf5 {[%clk 0:00:36.8]}
1-0

[Event "Early-Titled-Tuesday-Blitz-March-19-2024"]
[Site "Chess.com"]
[Date "2024.03.19"]
[Round "5"]
[White "FormerProdigy"]
[Black "TregubovP"]
[Result "1-0"]
[WhiteElo "2950"]
[BlackElo "2679"]
[TimeControl "180+1"]
[EndTime "8:56:58 PDT"]
[Termination "FormerProdigy won by resignation"]

1. e4 {[%clk 0:03:00.9]} 1... c5 {[%clk 0:02:56.9]} 2. Nf3 {[%clk 0:03:00.8]}
2... e6 {[%clk 0:02:54.2]} 3. b3 {[%clk 0:02:58.8]} 3... Nc6 {[%clk 0:02:53.3]}
4. Bb2 {[%clk 0:02:57.4]} 4... a6 {[%clk 0:02:53.9]} 5. c4 {[%clk 0:02:56.9]}
5... Nf6 {[%clk 0:02:53.9]} 6. e5 {[%clk 0:02:55.1]} 6... Ng4 {[%clk 0:02:50.3]}
7. g3 {[%clk 0:02:41.2]} 7... Be7 {[%clk 0:02:45.8]} 8. Bh3 {[%clk 0:02:37.7]}
8... Nh6 {[%clk 0:02:42.8]} 9. O-O {[%clk 0:02:26.9]} 9... O-O {[%clk
0:02:42.4]} 10. d4 {[%clk 0:02:19.8]} 10... cxd4 {[%clk 0:02:39.3]} 11. Nxd4
{[%clk 0:02:20.7]} 11... Nxe5 {[%clk 0:02:36.4]} 12. Nxe6 {[%clk 0:02:20.2]}
12... dxe6 {[%clk 0:02:35.1]} 13. Bxe5 {[%clk 0:02:21.1]} 13... Bd7 {[%clk
0:02:12]} 14. Bg2 {[%clk 0:02:20.1]} 14... Qc8 {[%clk 0:02:04.9]} 15. Nc3 {[%clk
0:02:13.7]} 15... Bc6 {[%clk 0:02:05.2]} 16. Rc1 {[%clk 0:01:54.4]} 16... Bxg2
{[%clk 0:01:59]} 17. Kxg2 {[%clk 0:01:55.3]} 17... Rd8 {[%clk 0:01:55]} 18. Qf3
{[%clk 0:01:55.1]} 18... Nf5 {[%clk 0:01:52.6]} 19. Na4 {[%clk 0:01:44]} 19...
Qc6 {[%clk 0:00:58.9]} 20. Qxc6 {[%clk 0:01:44.2]} 20... bxc6 {[%clk 0:00:59.5]}
21. Rfd1 {[%clk 0:01:45.1]} 21... Kf8 {[%clk 0:00:52.2]} 22. Nb6 {[%clk
0:01:36.9]} 22... Rxd1 {[%clk 0:00:51.4]} 23. Rxd1 {[%clk 0:01:37.8]} 23... Rd8
{[%clk 0:00:51.6]} 24. Rxd8+ {[%clk 0:01:38.2]} 24... Bxd8 {[%clk 0:00:51.9]}
25. Nd7+ {[%clk 0:01:39.1]} 25... Ke8 {[%clk 0:00:45.1]} 26. Nb8 {[%clk
0:01:26.3]} 26... f6 {[%clk 0:00:45.3]} 27. Bc3 {[%clk 0:01:22.7]} 27... c5
{[%clk 0:00:36.1]} 28. Nxa6 {[%clk 0:01:23.2]} 28... Bb6 {[%clk 0:00:36.5]} 29.
b4 {[%clk 0:01:10.9]} 29... cxb4 {[%clk 0:00:35.4]} 30. Bxb4 {[%clk 0:01:11.8]}
30... Kd7 {[%clk 0:00:34.2]} 31. Nc5+ {[%clk 0:01:12.2]} 31... Kd6 {[%clk
0:00:22.3]} 32. Na4+ {[%clk 0:01:05.9]} 32... Kc6 {[%clk 0:00:22.6]} 33. Nxb6
{[%clk 0:01:06.8]} 33... Kxb6 {[%clk 0:00:23.2]} 34. Kf3 {[%clk 0:01:01.3]}
34... Nd4+ {[%clk 0:00:22.9]} 35. Ke4 {[%clk 0:01:00.6]} 35... Nc6 {[%clk
0:00:21.9]} 36. Bf8 {[%clk 0:00:53.8]} 36... g6 {[%clk 0:00:22.2]} 37. Bg7
{[%clk 0:00:42.1]} 37... f5+ {[%clk 0:00:22.4]} 38. Kf4 {[%clk 0:00:42.7]} 38...
Kc5 {[%clk 0:00:20.4]} 39. Kg5 {[%clk 0:00:43.3]} 39... Kxc4 {[%clk 0:00:20.5]}
40. Kh6 {[%clk 0:00:43.6]} 40... Kd3 {[%clk 0:00:20.5]} 41. f4 {[%clk
0:00:43.5]} 41... Ke4 {[%clk 0:00:11.7]} 42. Kxh7 {[%clk 0:00:43.5]} 42... Kf3
{[%clk 0:00:08.5]} 43. Kxg6 {[%clk 0:00:43.8]} 43... Kg4 {[%clk 0:00:08.9]} 1-0

[Event "Early-Titled-Tuesday-Blitz-March-19-2024"]
[Site "Chess.com"]
[Date "2024.03.19"]
[Round "5"]
[White "CarlosjPineror"]
[Black "Chess_Gainz"]
[Result "0-1"]
[WhiteElo "2697"]
[BlackElo "2543"]
[TimeControl "180+1"]
[EndTime "8:56:58 PDT"]
[Termination "Chess_Gainz won by checkmate"]

1. e4 {[%clk 0:03:00.9]} 1... d6 {[%clk 0:02:56.9]} 2. d4 {[%clk 0:03:00]} 2...
Nf6 {[%clk 0:02:56.5]} 3. f3 {[%clk 0:02:58.8]} 3... Nbd7 {[%clk 0:02:54.9]} 4.
c4 {[%clk 0:02:58.2]} 4... e5 {[%clk 0:02:54.4]} 5. d5 {[%clk 0:02:57.5]} 5...
Be7 {[%clk 0:02:54.4]} 6. Nc3 {[%clk 0:02:57.5]} 6... c6 {[%clk 0:02:52.5]} 7.
Be3 {[%clk 0:02:57.7]} 7... O-O {[%clk 0:02:50.7]} 8. Qd2 {[%clk 0:02:57.6]}
8... cxd5 {[%clk 0:02:49.5]} 9. cxd5 {[%clk 0:02:57.4]} 9... a6 {[%clk 0:02:50]}
10. a4 {[%clk 0:02:52.7]} 10... h5 {[%clk 0:02:42.7]} 11. h4 {[%clk 0:02:44.7]}
11... Nc5 {[%clk 0:02:23.3]} 12. Qc2 {[%clk 0:02:43.3]} 12... Nfd7 {[%clk
0:02:07.6]} 13. b4 {[%clk 0:02:35.4]} 13... Bxh4+ {[%clk 0:02:00.4]} 14. Kd1
{[%clk 0:02:04.9]} 14... Bg5 {[%clk 0:01:18.4]} 15. Bf2 {[%clk 0:01:58.8]} 15...
g6 {[%clk 0:01:12.7]} 16. bxc5 {[%clk 0:01:58.1]} 16... Nxc5 {[%clk 0:01:13.6]}
17. Bxc5 {[%clk 0:01:39.2]} 17... dxc5 {[%clk 0:01:13.7]} 18. Bc4 {[%clk
0:01:39.9]} 18... Bd7 {[%clk 0:01:06.1]} 19. a5 {[%clk 0:01:39.3]} 19... b5
{[%clk 0:00:54.4]} 20. axb6 {[%clk 0:01:39.1]} 20... Qxb6 {[%clk 0:00:55.1]} 21.
Rb1 {[%clk 0:01:13.4]} 21... Qa5 {[%clk 0:00:54.8]} 22. Nh3 {[%clk 0:01:05.7]}
22... Be3 {[%clk 0:00:54.6]} 23. Ke2 {[%clk 0:01:00.2]} 23... Bd4 {[%clk
0:00:53.4]} 24. Rhc1 {[%clk 0:00:56.4]} 24... Rab8 {[%clk 0:00:37]} 25. Nf2
{[%clk 0:00:47.4]} 25... Rxb1 {[%clk 0:00:27.7]} 26. Nxb1 {[%clk 0:00:48.3]}
26... Rb8 {[%clk 0:00:23.3]} 27. Nd3 {[%clk 0:00:48.8]} 27... Qd8 {[%clk
0:00:18]} 28. Nd2 {[%clk 0:00:19.6]} 28... Bb5 {[%clk 0:00:10]} 29. Bxb5 {[%clk
0:00:16.7]} 29... axb5 {[%clk 0:00:10]} 30. Nxc5 {[%clk 0:00:16]} 30... Rc8
{[%clk 0:00:08.7]} 31. Ndb3 {[%clk 0:00:15.8]} 31... Qg5 {[%clk 0:00:07.3]} 32.
Kd3 {[%clk 0:00:16.2]} 32... Qe3# {[%clk 0:00:06.4]} 0-1

[Event "Early-Titled-Tuesday-Blitz-March-19-2024"]
[Site "Chess.com"]
[Date "2024.03.19"]
[Round "5"]
[White "CatLoverPL"]
[Black "Zampronha1971"]
[Result "1/2-1/2"]
[WhiteElo "2493"]
[BlackElo "2316"]
[TimeControl "180+1"]
[EndTime "8:56:58 PDT"]
[Termination "Game drawn by repetition"]

1. g3 {[%clk 0:03:00.9]} 1... Nf6 {[%clk 0:02:59]} 2. Bg2 {[%clk 0:03:01.2]}
2... e6 {[%clk 0:02:59.9]} 3. Nf3 {[%clk 0:03:01.8]} 3... c5 {[%clk 0:03:00]} 4.
O-O {[%clk 0:03:02.7]} 4... b6 {[%clk 0:02:58.2]} 5. c4 {[%clk 0:03:03.6]} 5...
Bb7 {[%clk 0:02:58.1]} 6. Nc3 {[%clk 0:03:03.7]} 6... Be7 {[%clk 0:02:57.3]} 7.
d3 {[%clk 0:03:02.3]} 7... O-O {[%clk 0:02:56.3]} 8. Rb1 {[%clk 0:03:02.8]} 8...
d5 {[%clk 0:02:56.6]} 9. cxd5 {[%clk 0:03:03.7]} 9... Nxd5 {[%clk 0:02:55.1]}
10. a3 {[%clk 0:03:03.9]} 10... Nxc3 {[%clk 0:02:49.2]} 11. bxc3 {[%clk
0:03:03.7]} 11... Nc6 {[%clk 0:02:49.5]} 12. Be3 {[%clk 0:03:02.3]} 12... Qd7
{[%clk 0:02:49.3]} 13. Qa4 {[%clk 0:03:01.3]} 13... Rfd8 {[%clk 0:02:48.2]} 14.
Rfd1 {[%clk 0:03:00.7]} 14... h6 {[%clk 0:02:40.3]} 15. Qc2 {[%clk 0:02:54.4]}
15... Rac8 {[%clk 0:02:38.8]} 16. h4 {[%clk 0:02:53]} 16... Qc7 {[%clk
0:02:34.7]} 17. Kf1 {[%clk 0:02:51.4]} 17... Ne5 {[%clk 0:02:21.8]} 18. Nxe5
{[%clk 0:02:50.5]} 18... Bxg2+ {[%clk 0:02:22.7]} 19. Kxg2 {[%clk 0:02:50.1]}
19... Qxe5 {[%clk 0:02:23.6]} 20. Qd2 {[%clk 0:02:42.9]} 20... Qd5+ {[%clk
0:02:18.2]} 21. Kg1 {[%clk 0:02:42.2]} 21... Bf8 {[%clk 0:02:14]} 22. c4 {[%clk
0:02:41.2]} 22... Qb7 {[%clk 0:02:11]} 23. a4 {[%clk 0:02:41.4]} 23... Qa6
{[%clk 0:02:06.2]} 24. a5 {[%clk 0:02:39.7]} 24... Rc6 {[%clk 0:01:56.3]} 25.
Rb5 {[%clk 0:02:39.4]} 25... Qb7 {[%clk 0:01:38]} 26. Rdb1 {[%clk 0:02:38.8]}
26... Qc7 {[%clk 0:01:35.9]} 27. Qb2 {[%clk 0:02:35.2]} 27... Rb8 {[%clk
0:01:31.9]} 28. Bf4 {[%clk 0:02:32.4]} 28... Bd6 {[%clk 0:01:31.4]} 29. Bxd6
{[%clk 0:02:23.8]} 29... Qxd6 {[%clk 0:01:30.9]} 30. Qd2 {[%clk 0:02:23.1]}
30... a6 {[%clk 0:01:23.4]} 31. R5b2 {[%clk 0:02:21.4]} 31... Qc7 {[%clk
0:00:49.5]} 32. Qc2 {[%clk 0:02:21]} 32... Rd6 {[%clk 0:00:42]} 33. Qa4 {[%clk
0:02:20.4]} 33... g6 {[%clk 0:00:31.5]} 34. Kh2 {[%clk 0:02:17.8]} 34... Kg7
{[%clk 0:00:31.3]} 35. axb6 {[%clk 0:02:13.1]} 35... Rdxb6 {[%clk 0:00:29.5]}
36. Rxb6 {[%clk 0:02:11]} 36... Rxb6 {[%clk 0:00:30.4]} 37. Qa5 {[%clk 0:02:10]}
37... Rc6 {[%clk 0:00:24.9]} 38. Qc3+ {[%clk 0:02:08.3]} 38... Kh7 {[%clk
0:00:22.8]} 39. Ra1 {[%clk 0:02:05]} 39... Qb7 {[%clk 0:00:21.6]} 40. Qf6 {[%clk
0:02:03.6]} 40... Rc7 {[%clk 0:00:19.5]} 41. Ra2 {[%clk 0:02:00.7]} 41... Qc6
{[%clk 0:00:18.7]} 42. Rb2 {[%clk 0:01:58.6]} 42... Rb7 {[%clk 0:00:19.1]} 43.
Ra2 {[%clk 0:01:55.7]} 43... Qb6 {[%clk 0:00:17.5]} 44. h5 {[%clk 0:01:53.3]}
44... gxh5 {[%clk 0:00:16.3]} 45. Qf3 {[%clk 0:01:52.4]} 45... Rd7 {[%clk
0:00:15]} 46. Qxh5 {[%clk 0:01:49.4]} 46... Kg7 {[%clk 0:00:14.4]} 47. Qg4+
{[%clk 0:01:48.6]} 47... Kh7 {[%clk 0:00:14.8]} 48. f3 {[%clk 0:01:45.4]} 48...
Rd4 {[%clk 0:00:13.8]} 49. Qh5 {[%clk 0:01:41.5]} 49... Kg7 {[%clk 0:00:12.7]}
50. Kg2 {[%clk 0:01:40.5]} 50... Qd6 {[%clk 0:00:12.7]} 51. Ra1 {[%clk
0:01:38.6]} 51... e5 {[%clk 0:00:10.2]} 52. Rh1 {[%clk 0:01:36.7]} 52... Qf6
{[%clk 0:00:10.6]} 53. Rh4 {[%clk 0:01:36]} 53... Rxh4 {[%clk 0:00:09.9]} 54.
gxh4 {[%clk 0:01:35.5]} 54... Qf4 {[%clk 0:00:09.2]} 55. Kf2 {[%clk 0:01:29.8]}
55... a5 {[%clk 0:00:09.6]} 56. e3 {[%clk 0:01:29.6]} 56... Qh2+ {[%clk
0:00:10]} 57. Ke1 {[%clk 0:01:28.8]} 57... Qg1+ {[%clk 0:00:10.1]} 58. Kd2
{[%clk 0:01:29]} 58... Qf2+ {[%clk 0:00:10.8]} 59. Kc3 {[%clk 0:01:29]} 59...
Qxe3 {[%clk 0:00:11.4]} 60. Qg4+ {[%clk 0:01:29.3]} 60... Kf8 {[%clk 0:00:09.7]}
61. Qc8+ {[%clk 0:01:29.2]} 61... Kg7 {[%clk 0:00:09.9]} 62. Qg4+ {[%clk
0:01:29.1]} 62... Kf8 {[%clk 0:00:10.2]} 63. Qc8+ {[%clk 0:01:29.2]} 63... Kg7
{[%clk 0:00:10.4]} 64. Qg4+ {[%clk 0:01:28.3]} 1/2-1/2